[Event "46th GRE-chT Premier 2018"]
[Site "Rio Achaia"]
[Date "2018.07.11"]
[Round "2"]
[White "Chasouraki, Chrysi"]
[Black "Batzoli, Maria"]
[Result "0-1"]
[ECO "B13"]
[WhiteElo "1026"]
[BlackElo "1312"]
[Annotator "NA"]
[PlyCount "86"]
[EventDate "2018.07.10"]
[EventType "team-tourn"]
[EventCountry "GRE"]
[SourceTitle "playchess.com"]
[Source "ChessBase"]
[SourceQuality "1"]
[TimeControl "40/5400+30:1800+30"]

1. e4 {[%emt 0:00:00]} c6 {[%emt 0:00:00]} 2. d4 {[%emt 0:00:00]} d5 {[%emt 0:00:00]} 3. exd5 {[%emt 0:05:35]} cxd5 {[%emt 0:00:00]} 4. c4 {[%emt 0:00:23]} Nf6 {[%emt 0:00:27]} 5. Nc3 {[%emt 0:00:23]} Nc6 {[%emt 0:01:11]} 6. Nf3 {[%emt 0:00:49]} Be6 {[%emt 0:12:41]} 7. b3 {[%emt 0:08:06]} g6 {[%emt 0:02:42]} 8. h3 {[%emt 0:01:48]} Bg7 {[%emt 0:01:51]} 9. Be3 {[%emt 0:01:20]} O-O {[%emt 0:12:31]} 10. Be2 {[%emt 0:02:31]} Bf5 {[%emt 0:05:00]} 11. O-O {[%emt 0:02:11]} Re8 {[%emt 0:17:10]} 12. Rc1 {[%emt 0:07:55]} Rc8 {[%emt 0:02:01]} 13. Bd3 {[%emt 0:02:06]} Bxd3 {[%emt 0:00:39]} 14. Qxd3 {[%emt 0:00:10]} Nb4 {[%emt 0:00:55]} 15. Qe2 {[%emt 0:01:05]} Nc6 {[%emt 0:07:24]} 16. Rfd1 {[%emt 0:01:38]} e6 {[%emt 0:01:56]} 17. Bg5 {[%emt 0:02:02]} Ne7 {[%emt 0:01:37]} 18. Ne5 {[%emt 0:02:05]} h6 {[%emt 0:00:58]} 19. Bh4 {[%emt 0:00:55]} g5 {[%emt 0:00:43]} 20. Bg3 {[%emt 0:00:32]} Nf5 21. Bh2 {[%emt 0:01:07]} dxc4 {[%emt 0:01:12]} 22. Nxc4 {[%emt 0:00:56]} Bf8 {[%emt 0:09:05]} 23. Be5 {[%emt 0:01:36]} Nd5 {[%emt 0:04:50]} 24. Ne4 {[%emt 0:02:07]} Rc6 {[%emt 0:01:43]} 25. Qf3 {[%emt 0:01:54]} b5 {[%emt 0:01:41]} 26. Na3 {[%emt 0:00:54]} Rxc1 {[%emt 0:00:30]} 27. Rxc1 {[%emt 0:00:16]} Bxa3 {[%emt 0:00:08]} 28. Rd1 {[%emt 0:00:25]} Bd6 {[%emt 0:00:45]} 29. Nxd6 {[%emt 0:01:08]} Nxd6 {[%emt 0:00:10]} 30. Qh5 {[%emt 0:00:21]} Kf8 {[%emt 0:09:04]} 31. Bxd6+ {[%emt 0:01:02]} Qxd6 {[%emt 0:00:08]} 32. Qxh6+ {[%emt 0:00:05]} Ke7 {[%emt 0:00:41]} 33. Qxg5+ {[%emt 0:00:09]} Kd7 {[%emt 0:00:15]} 34. h4 {[%emt 0:00:30]} Qf4 {[%emt 0:00:08]} 35. Qg7 {[%emt 0:01:17]} Qf6 {[%emt 0:00:29]} 36. Qg4 {[%emt 0:00:47]} Rh8 {[%emt 0:00:23]} 37. g3 {[%emt 0:00:21]} Qg6 {[%emt 0:01:24]} 38. Qh3 {[%emt 0:00:31]} Qc2 {[%emt 0:00:27]} 39. Re1 {[%emt 0:00:31]} Qxa2 {[%emt 0:00:23]} 40. g4 {[%emt 0:00:00]} Qd2 {[%emt 0:00:00]} 41. Re4 {[%emt 0:02:20]} Qc1+ {[%emt 0:03:18]} 42. Kg2 {[%emt 0:00:37]} Nf4+ {[%emt 0:02:05]} 43. Rxf4 {[%emt 0:00:35]} Qxf4 {[%emt 0:01:09]} 0-1